bitfinex/quotes_SOLUSD_20250212
["timestamp","ask_amount","ask_price","bid_price","bid_amount"]
[1739390882988,82.33,193.74,193.66,29.2003522]
[1739390883584,0.03,193.74,193.66,29.2003522]
[1739390885413,0.03,193.74,193.71,0.37647]
[1739390885605,0.03,193.74,193.73,10.24843367]
[1739390886410,0.03,193.74,193.73,15.41023367]
[1739390886782,0.03,193.74,193.73,10.24843367]
[1739390887001,0.03,193.74,193.7,10.24843367]
[1739390887190,0.03,193.74,193.69,15.41123367]
[1739390887584,18.30963367,193.73,193.66,15.41203367]
[1739390887890,18.30963367,193.73,193.65,10.24843367]
[1739390887891,8.0612,193.73,193.65,10.24843367]
[1739390888091,8.0612,193.73,193.63,10.24843367]
[1739390888092,10.24843367,193.69,193.63,10.24843367]
[1739390888298,10.24843367,193.69,193.62,10.31143367]
[1739390888489,8.0612,193.73,193.66,0.063]
[1739390888490,10.24843367,193.67,193.66,0.063]
[1739390891636,16.02871583,193.67,193.66,0.063]
[1739390891820,16.02871583,193.71,193.66,0.063]
[1739390892330,16.02871583,193.7,193.66,0.063]
[1739390893422,16.02871583,193.71,193.66,0.063]
[1739390893812,16.02871583,193.7,193.66,0.063]
[1739390894209,16.02871583,193.69,193.66,0.063]
[1739390895228,0.12549,193.72,193.66,0.063]
[1739390895229,16.02871583,193.67,193.66,0.063]
[1739390896429,29.94252436,193.67,193.66,0.063]
[1739390896625,20.0,193.64,193.62,0.063]
[1739390896929,16.15420583,193.63,193.62,0.063]
[1739390897321,29.94252436,193.63,193.62,0.063]
[1739390898609,31.59872436,193.63,193.5,21.25961583]
[1739390898809,16.02871583,193.56,193.5,21.25961583]
[1739390899009,16.02871583,193.56,193.5,5.2309]
[1739390899816,16.02871583,193.56,193.5,21.25961583]
[1739390900318,16.02871583,193.57,193.5,21.25961583]
[1739390901322,16.02871583,193.56,193.5,21.25961583]
[1739390901722,16.02871583,193.57,193.5,21.25961583]
[1739390903418,16.02871583,193.58,193.51,16.02871583]
[1739390904031,16.02871583,193.57,193.5,16.09171583]
[1739390904230,16.02871583,193.58,193.51,16.02871583]
[1739390904434,16.02871583,193.61,193.54,16.02871583]
[1739390904717,82.3,193.62,193.56,16.02871583]
[1739390905832,16.02871583,193.65,193.58,16.02871583]
[1739390906633,16.02871583,193.66,193.59,16.02871583]
[1739390906828,16.02871583,193.67,193.6,16.02871583]
[1739390907321,16.02871583,193.66,193.6,16.02871583]
[1739390907522,16.02871583,193.67,193.6,16.02871583]
[1739390907740,16.02871583,193.67,193.61,16.02871583]
[1739390909043,16.02871583,193.66,193.59,16.02871583]
[1739390909341,16.02871583,193.65,193.58,16.02871583]
[1739390909946,16.02871583,193.66,193.6,16.02871583]
[1739390910246,16.02871583,193.67,193.61,16.02871583]
[1739390910444,17.63231583,193.68,193.61,16.02871583]
[1739390910945,16.02871583,193.67,193.61,16.02871583]
[1739390911947,16.02871583,193.67,193.61,21.19371583]
[1739390913061,0.03,193.66,193.61,21.19371583]
[1739390913559,0.03,193.66,193.63,16.02871583]
[1739390913763,0.03,193.66,193.64,16.02871583]
[1739390914128,0.03,193.66,193.62,16.02871583]
[1739390915744,0.03,193.66,193.59,16.02871583]
[1739390915745,16.05871583,193.66,193.59,16.02871583]
[1739390915953,16.02871583,193.65,193.58,21.25731583]
[1739390916325,16.02871583,193.64,193.58,21.25731583]
[1739390916531,16.02871583,193.63,193.58,5.2286]
[1739390917261,16.02871583,193.63,193.58,0.063]
[1739390917456,16.02871583,193.62,193.58,0.063]
[1739390918238,16.02871583,193.63,193.58,0.063]
[1739390920584,98.32871583,193.65,193.58,21.25751583]
[1739390920760,16.02871583,193.64,193.58,21.25751583]
[1739390924087,98.32871583,193.65,193.58,21.25751583]
[1739390924388,98.32871583,193.65,193.59,16.02871583]
[1739390925773,98.32871583,193.65,193.59,0.063]
[1739390927386,98.32871583,193.65,193.59,16.09171583]
[1739390927704,82.3,193.65,193.59,10.32184286]
[1739390928879,82.3,193.65,193.6,10.25884286]
[1739390929080,82.3,193.65,193.61,10.25884286]
[1739390931970,82.3,193.65,193.6,5.1651]
[1739390931971,82.3,193.65,193.6,10.25884286]
[1739390932172,82.3,193.65,193.61,10.25884286]
[1739390933270,0.03,193.66,193.64,10.25884286]
[1739390933496,0.03,193.66,193.65,10.25884286]
[1739390934092,0.03,193.66,193.65,5.1639]
[1739390934397,0.03,193.66,193.65,15.42274286]
[1739390935074,0.03,193.66,193.64,10.25884286]
[1739390935282,0.03,193.66,193.65,10.25884286]
[1739390936279,0.03,193.66,193.65,15.42274286]
[1739390936902,0.03,193.66,193.63,10.25884286]
[1739390937076,0.03,193.66,193.63,15.42304286]
[1739390938080,0.03,193.66,193.64,10.25884286]
[1739390939171,0.03,193.66,193.65,10.25884286]
[1739390940575,0.03,193.66,193.65,15.42274286]
[1739390944809,0.03,193.66,193.65,31.29511803]
[1739390944998,0.03,193.74,193.73,10.25884286]
[1739390946375,0.03,193.74,193.73,15.42064286]
[1739390947300,0.03,193.74,193.73,15.79711286]
[1739390947478,0.03,193.75,193.73,15.79711286]
[1739390947479,0.03,193.75,193.74,18.94981853]
[1739390947683,0.03,193.75,193.74,34.94344726]
[1739390948787,0.03,193.75,193.74,21.53159873]
[1739390949003,0.03,193.75,193.74,21.15512873]
[1739390950911,0.03,193.75,193.74,34.94344726]
[1739390951292,0.03,193.75,193.74,37.15232277]
[1739390951489,0.03,193.75,193.74,36.15232277]
[1739390951916,0.03,193.75,193.74,36.02683277]
[1739390953515,0.03,193.76,193.74,38.15232277]
[1739390953700,0.03,193.76,193.75,16.37009873]
[1739390953904,0.03,193.77,193.75,30.78194726]
[1739390954101,0.03,193.77,193.76,17.45332794]
[1739390954912,0.03,193.77,193.76,22.61432794]
[1739390955527,0.03,193.79,193.77,0.37647]
[1739390955820,0.03,193.83,193.79,1.0]
[1739390955993,0.03,193.83,193.81,29.78194726]
[1739390956193,0.03,193.83,193.81,30.90743726]
[1739390956432,0.03,193.83,193.81,29.90743726]
[1739390956928,0.03,193.83,193.81,35.06703726]
[1739390957529,0.03,193.83,193.81,36.02455647]
[1739390959838,0.03,193.83,193.81,22.23623794]
[1739390960028,0.03,193.83,193.81,21.15322873]
[1739390960224,0.03,193.83,193.79,21.15362873]
[1739390960422,0.03,193.83,193.78,15.99362873]
[1739390961144,0.03,193.83,193.79,15.99362873]
[1739390961943,0.03,193.83,193.81,15.99362873]
[1739390962246,0.03,193.83,193.78,5.1604]
[1739390962247,0.03,193.83,193.8,15.99362873]
[1739390962453,0.03,193.83,193.79,16.05662873]
[1739390962743,0.03,193.83,193.79,0.063]
[1739390963042,16.02362873,193.83,193.79,0.063]
[1739390963511,0.03,193.83,193.79,0.063]
[1739390965342,0.03,193.83,193.8,15.99362873]
[1739390965555,0.03,193.83,193.79,0.063]
[1739390965556,0.03,193.83,193.81,15.99362873]
[1739390966452,0.03,193.83,193.8,5.1597]
[1739390966758,0.03,193.83,193.8,21.15332873]
[1739390967458,0.03,193.83,193.81,15.99362873]
[1739390967630,0.03,193.83,193.81,16.37009873]
[1739390968334,0.03,193.83,193.81,29.78194726]
[1739390968952,0.03,193.83,193.81,34.94154726]
[1739390970636,0.03,193.83,193.82,18.57124853]
[1739390970847,0.03,193.83,193.82,36.02432748]
[1739390971043,0.03,193.86,193.82,48.92282748]
[1739390971243,0.03,193.86,193.85,15.99362873]
[1739390972245,0.03,193.86,193.85,21.15222873]
[1739390974670,0.03,193.86,193.85,5.1586]
[1739390974860,0.03,193.86,193.85,15.99362873]
[1739390975874,0.03,193.86,193.85,21.15222873]
[1739390976571,0.03,193.86,193.85,5.1586]
[1739390976743,0.03,193.86,193.85,21.15222873]
[1739390976944,0.03,193.86,193.85,5.1586]
[1739390977140,0.03,193.86,193.85,15.99362873]
[1739390978073,0.03,193.86,193.84,21.15242873]
[1739390978371,0.03,193.86,193.84,5.1588]
[1739390978676,0.03,193.86,193.83,5.1591]
[1739390979175,0.03,193.86,193.83,21.15272873]
[1739390979871,0.03,193.86,193.81,15.99362873]
[1739390980170,0.03,193.86,193.8,15.99362873]
[1739390980352,0.03,193.86,193.82,15.99362873]
[1739390980665,0.03,193.86,193.83,15.99362873]
[1739390980963,0.03,193.86,193.81,15.99362873]
[1739390981166,15.52362873,193.86,193.8,15.99362873]
[1739390981670,16.02362873,193.87,193.81,15.99362873]
[1739390982668,0.03,193.87,193.81,15.99362873]
[1739390982865,0.03,193.87,193.82,15.99362873]
[1739390983769,0.03,193.87,193.82,10.23492552]
[1739390984369,0.03,193.87,193.83,10.23492552]
[1739390984549,0.03,193.87,193.84,10.23492552]
[1739390984872,0.03,193.87,193.83,10.23492552]
[1739390985268,0.03,193.87,193.82,5.1593]
[1739390985649,0.03,193.87,193.82,15.45722552]
[1739390987070,0.03,193.87,193.83,10.23492552]
[1739390988276,0.03,193.87,193.82,15.45712552]
[1739390989083,0.03,193.87,193.83,10.23492552]
[1739390989783,0.03,193.87,193.82,10.29792552]
[1739390991674,0.03,193.87,193.82,5.2222]
[1739390993352,10.26492552,193.87,193.82,0.063]
[1739390993678,10.23492552,193.86,193.82,0.063]
[1739390994266,0.03,193.87,193.82,0.063]
[1739390995779,0.03,193.87,193.83,10.23492552]
[1739390995968,0.03,193.87,193.84,10.23492552]
[1739390996380,0.03,193.87,193.86,10.23492552]
[1739390998282,0.03,193.87,193.86,10.61139552]
[1739390998672,0.03,193.87,193.86,15.76969552]
[1739390999080,0.03,193.87,193.86,29.18154405]
[1739391003469,0.03,193.87,193.86,30.30703405]
[1739391003881,0.03,193.87,193.86,29.18154405]
[1739391004398,0.03,193.94,193.87,14.91380853]
[1739391004689,0.03,193.94,193.93,10.23492552]
[1739391005087,0.03,193.94,193.93,10.36041552]
[1739391005296,0.03,193.94,193.93,24.02324405]
[1739391005497,0.03,193.94,193.93,10.36041552]
[1739391005667,0.03,193.94,193.93,10.23492552]
[1739391006065,0.03,193.94,193.93,15.39132552]
[1739391006877,0.03,193.94,193.93,5.1564]
[1739391007069,0.03,193.94,193.9,10.23492552]
[1739391007297,0.03,193.94,193.89,10.23492552]
[1739391007594,0.03,193.94,193.9,10.23492552]
[1739391007790,0.03,193.94,193.88,10.23492552]
[1739391007990,10.23492552,193.92,193.86,15.39322552]
[1739391008590,10.23492552,193.93,193.87,10.23492552]
[1739391008976,1.6144,193.94,193.87,5.158]
[1739391008977,10.23492552,193.92,193.87,5.158]
[1739391010298,10.23492552,193.93,193.87,5.158]
[1739391010974,10.23492552,193.89,193.86,0.063]
[1739391011195,10.23492552,193.87,193.86,0.063]
[1739391011704,10.23492552,193.88,193.86,0.063]
[1739391011892,10.23492552,193.89,193.86,0.063]
[1739391012685,10.23492552,193.9,193.86,0.063]
[1739391013201,10.23492552,193.88,193.86,0.063]
[1739391013501,10.23492552,193.87,193.86,0.063]
[1739391013802,10.23492552,193.88,193.86,0.063]
[1739391014900,10.23492552,193.91,193.86,0.063]
[1739391015098,11.84932552,193.94,193.87,10.23492552]
[1739391015694,11.84932552,193.94,193.86,0.063]
[1739391015695,1.6144,193.94,193.89,10.23492552]
[1739391016307,1.6144,193.94,193.88,10.23492552]
[1739391017985,1.6144,193.94,193.89,10.23492552]
[1739391018301,1.6144,193.94,193.93,10.23492552]
[1739391018302,0.03,193.94,193.93,10.23492552]
[1739391018514,1.5101,193.99,193.93,10.23492552]
[1739391018885,11.74502552,193.99,193.93,10.23492552]
[1739391019916,10.23492552,193.98,193.91,10.23492552]
[1739391020216,10.23492552,193.97,193.91,10.23492552]
[1739391020978,0.03,193.94,193.9,10.23492552]
[1739391022003,0.03,193.94,193.91,10.23492552]
[1739391022211,0.03,193.94,193.92,10.23492552]
[1739391023384,0.03,193.94,193.93,10.23492552]
[1739391023605,0.03,193.94,193.93,10.36041552]
[1739391023814,0.03,193.94,193.93,24.02324405]
[1739391024111,0.03,193.94,193.93,25.10571434]
[1739391024490,0.03,194.02,193.94,14.91380853]
[1739391024695,0.03,194.02,194.01,10.23492552]
[1739391025088,0.03,194.02,194.01,15.38922552]
[1739391025901,0.03,194.02,194.01,15.51471552]
[1739391026106,0.03,194.02,194.01,29.17754405]
[1739391026309,0.03,194.02,194.01,30.25955084]
[1739391027813,0.03,194.02,194.01,35.97854361]
[1739391028317,0.03,194.02,194.01,34.89653682]
[1739391028612,0.03,194.02,194.01,21.10821829]
[1739391029603,0.03,194.02,194.01,15.95391829]
[1739391029917,0.03,194.02,193.97,15.95391829]
[1739391031026,0.03,194.02,193.98,15.95391829]
[1739391032623,0.03,194.02,194.0,15.95391829]
[1739391032929,0.03,194.02,193.98,21.10901829]
[1739391033230,0.03,194.02,193.99,15.95391829]
[1739391034101,0.03,194.02,194.0,15.95391829]
[1739391034306,0.03,194.02,194.01,15.95391829]
[1739391034523,0.03,194.02,194.01,29.74223682]
[1739391034720,0.03,194.02,194.01,30.8242049]
[1739391034925,0.03,194.02,194.01,30.9496949]
[1739391035238,0.03,194.02,194.01,31.9496949]
[1739391035537,0.03,194.04,194.03,49.74223682]
[1739391035721,0.03,194.04,194.03,50.82413127]
[1739391035895,0.03,194.04,194.03,50.94962127]
[1739391036328,0.03,194.04,194.03,56.10342127]
[1739391037429,0.03,194.04,194.03,36.10342127]
[1739391037605,0.03,194.04,194.03,35.97793127]
[1739391038909,0.03,194.04,194.03,36.10342127]
[1739391039119,0.03,194.06,194.05,5.27879]
[1739391039324,0.03,194.06,194.05,36.10271613]
[1739391040706,0.03,194.06,194.05,35.97722613]
[1739391041027,0.03,194.06,194.05,41.23270829]
[1739391044812,0.03,194.06,194.05,21.23270829]
[1739391047827,0.03,194.06,194.05,21.10721829]
[1739391048910,0.03,194.06,194.05,21.23270829]
[1739391049507,0.03,194.06,194.05,34.89553682]
[1739391050535,0.03,194.06,194.05,36.1027925]
[1739391051230,0.03,194.13,194.06,30.86772682]
[1739391051422,0.03,194.13,194.12,15.95391829]
[1739391052319,0.03,194.13,194.12,21.10531829]
[1739391052522,0.03,194.13,194.12,34.89363682]
[1739391052906,1.4294,194.18,194.13,0.12549]
[1739391053110,1.4294,194.18,194.14,15.95391829]
[1739391053327,1.4294,194.18,194.13,15.95391829]
[1739391053630,17.38331829,194.18,194.11,21.10531829]
[1739391053929,15.95391829,194.17,194.11,21.10531829]
[1739391054607,17.38331829,194.18,194.11,21.10531829]
[1739391054948,17.38331829,194.18,194.12,15.95391829]
[1739391055232,1.4294,194.18,194.13,15.95391829]
[1739391055423,1.4294,194.18,194.14,15.95391829]
[1739391055620,1.4294,194.18,194.15,15.95391829]
[1739391056939,1.4594,194.18,194.15,15.95391829]
[1739391058435,1.4594,194.18,194.14,15.95391829]
[1739391060133,0.03,194.18,194.14,15.95391829]
[1739391060546,0.03,194.18,194.15,15.95391829]
[1739391061049,0.03,194.18,194.17,15.95391829]
[1739391061428,0.03,194.18,194.15,15.95391829]
[1739391061632,0.03,194.18,194.13,21.10491829]
[1739391063245,15.98391829,194.18,194.12,15.95391829]
[1739391063741,15.95391829,194.15,194.09,15.95391829]
[1739391064856,15.95391829,194.14,194.07,15.95391829]
[1739391065044,15.95391829,194.11,194.05,21.10721829]
[1739391065346,15.95391829,194.13,194.07,15.95391829]
[1739391065552,21.96351829,194.14,194.08,15.95391829]
[1739391067028,15.95391829,194.15,194.09,15.95391829]
[1739391067229,1.6169,194.16,194.11,15.95391829]
[1739391067829,17.57081829,194.16,194.1,15.95391829]
[1739391068327,15.95391829,194.15,194.09,21.10591829]
[1739391068536,15.95391829,194.13,194.08,5.2155]
[1739391069125,15.95391829,194.14,194.08,21.16941829]
[1739391069331,15.95391829,194.13,194.08,5.2155]
[1739391069628,15.95391829,194.11,194.08,0.063]
[1739391070026,15.95391829,194.15,194.09,15.95391829]
[1739391070227,1.6169,194.16,194.12,15.95391829]
[1739391070453,0.03,194.18,194.13,15.95391829]
[1739391071238,0.03,194.18,194.14,15.95391829]
[1739391071438,0.03,194.18,194.09,1.20702822]
[1739391071439,0.03,194.18,194.15,15.95391829]
[1739391072126,0.03,194.18,194.17,15.95391829]
[1739391072327,0.03,194.18,194.17,21.10401829]
[1739391073153,0.03,194.18,194.17,21.22950829]
[1739391073449,0.03,194.18,194.17,34.89233682]
[1739391073754,0.03,194.18,194.17,35.01782682]
[1739391074050,0.03,194.22,194.18,13.91380853]
[1739391074248,0.03,194.22,194.21,29.74223682]
[1739391074441,0.03,194.22,194.21,30.82315666]
[1739391075350,0.03,194.22,194.21,34.89123682]
[1739391075963,0.03,194.22,194.21,21.22840829]
[1739391076159,0.03,194.22,194.21,15.95391829]
[1739391076458,0.03,194.22,194.21,16.07940829]
[1739391077962,0.03,194.22,194.19,15.95391829]
[1739391078147,0.03,194.22,194.18,15.95391829]
[1739391078530,0.03,194.22,194.2,15.95391829]
[1739391079136,0.03,194.22,194.21,15.95391829]
[1739391081546,0.03,194.22,194.2,15.95391829]
[1739391081881,0.03,194.22,194.18,16.01691829]
[1739391082363,0.03,194.22,194.18,0.063]
[1739391083158,15.95391829,194.19,194.18,0.063]
[1739391085960,6.2581,194.2,194.18,0.063]
[1739391086164,0.03,194.22,194.18,0.063]
[1739391087275,0.03,194.22,194.18,16.01691829]
[1739391088551,0.03,194.22,194.18,0.063]
[1739391089594,15.98391829,194.22,194.18,0.063]
[1739391089882,15.95391829,194.2,194.18,0.063]
[1739391090855,17.55091829,194.19,194.18,0.063]
[1739391091260,0.15549,194.22,194.18,0.063]
[1739391091261,15.95391829,194.21,194.18,0.063]
[1739391091483,0.03,194.22,194.18,0.063]
[1739391092569,15.98391829,194.22,194.18,0.063]
[1739391093554,0.03,194.22,194.18,0.063]
[1739391093760,25.50418729,194.21,194.18,0.063]
[1739391093962,25.50418729,194.2,194.18,0.063]
[1739391094395,0.03,194.22,194.18,0.063]
[1739391095083,25.50418729,194.21,194.18,0.063]
[1739391095594,25.53418729,194.22,194.18,0.063]
[1739391097095,25.50418729,194.2,194.18,0.063]
[1739391097274,25.50418729,194.19,194.18,0.063]
[1739391099490,25.62967729,194.19,194.18,0.063]
[1739391102183,25.50418729,194.19,194.18,0.063]
[1739391103496,25.62967729,194.19,194.18,0.063]
[1739391104432,25.50418729,194.19,194.18,0.063]
[1739391104574,0.03,194.22,194.18,0.063]
[1739391104777,0.03,194.22,194.18,25.56718729]
[1739391105201,0.03,194.22,194.19,25.50418729]
[1739391105411,0.03,194.22,194.2,25.50418729]
[1739391105605,0.03,194.22,194.21,25.50418729]
[1739391107008,0.03,194.22,194.21,30.65318729]
[1739391111930,0.03,194.22,194.21,30.77867729]
[1739391113808,0.03,194.22,194.21,21.2002648]
[1739391114926,0.03,194.22,194.21,37.67378809]
[1739391115423,0.03,194.22,194.21,37.54829809]
[1739391115598,0.03,194.22,194.21,36.46729333]
[1739391120521,0.03,194.22,194.21,36.59278333]
[1739391120729,0.03,194.22,194.21,37.67355403]
[1739391121416,0.03,194.26,194.22,13.91380853]
[1739391121610,0.03,194.26,194.25,16.0512648]
[1739391122611,0.03,194.26,194.25,21.1992648]
[1739391124927,0.03,194.26,194.25,21.0737748]
[1739391125126,0.03,194.26,194.23,15.9257748]
[1739391125329,0.03,194.26,194.25,15.9257748]
[1739391125633,0.03,194.26,194.25,16.0512648]
[1739391126729,0.03,194.26,194.25,21.1992648]
[1739391128920,0.03,194.26,194.25,36.06832971]
[1739391129121,0.0001,194.26,194.25,36.06832971]
[1739391131627,35.9557748,194.42,194.36,15.9257748]
[1739391132028,0.03,194.42,194.36,15.9257748]
[1739391132331,0.03,194.42,194.36,21.0705748]
[1739391132631,0.03,194.42,194.38,15.9257748]
[1739391133514,0.03,194.42,194.41,15.9257748]
[1739391133718,0.03,194.42,194.4,15.9257748]
[1739391134319,15.9557748,194.42,194.36,21.0707748]
[1739391134533,0.03,194.42,194.37,15.9257748]
[1739391134837,0.03,194.42,194.37,21.0703748]
[1739391135713,0.03,194.42,194.4,15.9257748]
[1739391136139,0.03,194.42,194.41,15.9257748]
[1739391136319,0.03,194.42,194.41,29.83958333]
[1739391136520,0.03,194.42,194.41,32.42938301]
[1739391136928,0.03,194.46,194.45,20.0]
[1739391137131,0.03,194.46,194.45,35.9257748]
[1739391137326,0.03,194.46,194.45,49.71409333]
[1739391137532,15.9257748,194.59,194.47,0.12549]
[1739391137737,15.9257748,194.61,194.55,15.9257748]
[1739391137954,15.4257748,194.61,194.54,15.9257748]
[1739391138135,15.9257748,194.59,194.52,15.9257748]
[1739391138434,15.9257748,194.6,194.54,15.9257748]
[1739391138649,17.4279748,194.63,194.56,15.9257748]
[1739391138941,15.9257748,194.6,194.54,15.9257748]
[1739391139152,1.5022,194.63,194.51,15.9257748]
[1739391139153,15.9257748,194.57,194.51,15.9257748]
[1739391139356,15.9257748,194.59,194.53,15.9257748]
[1739391139652,15.9257748,194.6,194.53,15.9257748]
[1739391139957,15.9257748,194.61,194.54,15.9257748]
[1739391140519,20.0,194.61,194.55,15.9257748]
[1739391140726,17.4279748,194.63,194.56,15.9257748]
[1739391140931,15.9257748,194.62,194.56,15.9257748]
[1739391141142,15.9257748,194.61,194.55,15.9257748]
[1739391141337,15.9257748,194.59,194.53,15.9257748]
[1739391141843,15.9257748,194.61,194.54,15.9257748]
[1739391142441,15.9257748,194.6,194.54,15.9257748]
[1739391142740,15.9257748,194.58,194.52,15.9257748]
[1739391144342,15.9257748,194.59,194.52,15.9257748]
[1739391144543,15.9257748,194.59,194.53,15.9257748]
[1739391144955,1.5022,194.63,194.55,15.9257748]
[1739391144956,15.9257748,194.61,194.55,15.9257748]
[1739391145245,15.9257748,194.61,194.51,1.45582558]
[1739391145246,16.9256748,194.68,194.6,15.9257748]
[1739391145451,15.9257748,194.67,194.61,15.9257748]
[1739391145630,15.9257748,194.68,194.61,15.9257748]
[1739391145951,1.0,194.73,194.62,15.9257748]
[1739391146138,15.9257748,194.67,194.61,15.9257748]
[1739391146343,15.9257748,194.69,194.62,15.9257748]
[1739391146530,15.9257748,194.68,194.62,15.9257748]
[1739391146728,0.12549,194.74,194.6,15.9257748]
[1739391146729,15.9257748,194.66,194.6,15.9257748]
[1739391146928,15.9257748,194.68,194.62,15.9257748]
[1739391147151,1.0,194.71,194.58,21.0647748]
[1739391147449,15.9257748,194.65,194.58,21.0647748]
[1739391147950,15.9257748,194.63,194.56,15.9257748]
[1739391148156,15.9257748,194.61,194.55,15.9257748]
[1739391148445,1.12539,194.69,194.52,5.1406]
[1739391148446,15.9257748,194.57,194.52,5.1406]
[1739391148624,15.9257748,194.56,194.5,27.6285748]
[1739391149031,15.9257748,194.58,194.52,15.9257748]
[1739391149234,15.9257748,194.56,194.5,5.1412]
[1739391149451,15.9257748,194.59,194.52,0.063]
[1739391149645,25.40120722,194.59,194.53,25.40120722]
[1739391149837,25.40120722,194.59,194.52,25.46420722]
[1739391150124,25.40120722,194.59,194.52,0.063]
[1739391150329,25.40120722,194.61,194.54,25.40120722]
[1739391150947,8.0953,194.66,194.53,25.40120722]
[1739391151150,25.40120722,194.59,194.52,30.60490722]
[1739391151539,25.40120722,194.57,194.52,0.063]
[1739391151742,25.40120722,194.58,194.52,25.46420722]
[1739391151944,25.40120722,194.59,194.52,25.46420722]
[1739391152143,25.40120722,194.6,194.54,25.40120722]
[1739391152542,25.40120722,194.58,194.53,5.1405]
[1739391152743,25.40120722,194.59,194.53,5.1405]
[1739391152951,25.40120722,194.57,194.52,0.063]
[1739391153141,25.40120722,194.55,194.52,0.063]
[1739391153552,25.40120722,194.58,194.52,0.063]
[1739391153739,25.40120722,194.61,194.54,25.40120722]
[1739391154448,8.0953,194.66,194.53,5.1405]
[1739391154449,25.40120722,194.62,194.55,25.40120722]
[1739391154848,25.40120722,194.59,194.52,25.46420722]
[1739391155156,25.40120722,194.55,194.52,0.063]
[1739391155656,25.40120722,194.6,194.54,25.40120722]
[1739391157041,25.40120722,194.59,194.53,30.54170722]
[1739391157569,25.40120722,194.56,194.52,0.063]
[1739391158058,25.40120722,194.57,194.52,5.2038]
[1739391158269,25.40120722,194.59,194.52,30.60500722]
[1739391158835,25.40120722,194.6,194.53,25.40120722]
[1739391159069,25.40120722,194.56,194.52,0.063]
[1739391159355,25.40120722,194.54,194.52,0.063]
[1739391159561,25.40120722,194.53,194.52,0.063]
[1739391162643,27.52659722,194.53,194.52,0.063]
[1739391162958,25.52669722,194.53,194.52,0.063]
[1739391163168,25.40120722,194.53,194.52,0.063]
[1739391163956,25.40120722,194.57,194.52,0.063]
[1739391164475,25.40120722,194.56,194.52,0.063]
[1739391164838,25.40120722,194.57,194.52,0.063]
[1739391165152,25.40120722,194.55,194.52,0.063]
[1739391165357,25.40120722,194.58,194.52,0.063]
[1739391165539,20.0,194.57,194.53,25.40120722]
[1739391166249,25.40120722,194.59,194.53,25.40120722]
[1739391166441,6.5015,194.64,194.54,25.40120722]
[1739391166442,25.40120722,194.6,194.54,25.40120722]
[1739391167553,25.40120722,194.6,194.53,25.40120722]
[1739391167755,25.40120722,194.59,194.53,25.40120722]
[1739391167961,25.40120722,194.6,194.54,25.40120722]
[1739391169053,25.40120722,194.59,194.53,30.54160722]
[1739391169259,25.40120722,194.6,194.53,5.1404]
[1739391169564,45.40120722,194.61,194.55,25.40120722]
[1739391169779,25.40120722,194.6,194.54,25.40120722]
[1739391170564,25.40120722,194.61,194.55,25.40120722]
[1739391170771,25.40120722,194.61,194.55,30.54120722]
[1739391171665,15.87185036,194.61,194.55,21.01185036]
[1739391172167,15.87185036,194.61,194.54,15.87185036]
[1739391172649,15.87185036,194.6,194.54,15.87185036]
[1739391172970,15.87185036,194.61,194.54,15.87185036]
[1739391173559,15.87185036,194.62,194.55,21.01185036]
[1739391174159,0.03,194.61,194.55,21.01185036]
[1739391175471,15.90185036,194.61,194.54,15.87185036]
[1739391175861,15.87185036,194.59,194.53,21.01235036]
[1739391176256,15.87185036,194.6,194.53,21.01235036]
[1739391176971,15.87185036,194.6,194.53,5.1405]
[1739391177150,15.90185036,194.61,194.54,15.87185036]
[1739391177355,0.03,194.61,194.55,15.87185036]
[1739391177775,0.03,194.61,194.56,15.87185036]
[1739391178151,0.03,194.61,194.57,5.1395]
[1739391178353,15.90185036,194.61,194.57,5.1395]
[1739391178974,15.87185036,194.6,194.54,5.1403]
[1739391181680,15.87185036,194.56,194.52,5.2036]
[1739391181879,15.87185036,194.53,194.52,0.063]
[1739391182477,16.87185036,194.6,194.52,0.063]